[Event "Titled Tuesday Blitz July 27 2021"]
[White "Obregon, Andres Carlos"]
[Black "Oparin, Grigoriy"]
[WhiteFideId "111724"]
[BlackFideId "24125890"]
[WhiteElo "2572"]
[BlackElo "2628"]
[Result "1/2-1/2"]
[Round "08"]
[TimeControl "180+1"]
[Date "2021.07.27"]
[WhiteClock "0:00:07"]
[BlackClock "0:00:20"]

1. d4 {[%clk 0:03:00]}  Nf6 {[%clk 0:02:59]} 2. Bg5 {[%clk 0:03:00]}  e6 {[%clk 0:03:00]} 3. e4 {[%clk 0:02:59]}  h6 {[%clk 0:03:01]} 4. Bxf6 {[%clk 0:02:59]}  Qxf6 {[%clk 0:03:02]} 5. c3 {[%clk 0:03:00]}  b6 {[%clk 0:03:01]} 6. Nd2 {[%clk 0:02:57]}  Bb7 {[%clk 0:03:02]} 7. Bd3 {[%clk 0:02:56]}  Qg5 {[%clk 0:02:59]} 8. g3 {[%clk 0:02:46]}  c5 {[%clk 0:02:59]} 9. Ngf3 {[%clk 0:02:44]}  Qd8 {[%clk 0:02:59]} 10. O-O {[%clk 0:02:25]}  Be7 {[%clk 0:03:00]} 11. Re1 {[%clk 0:02:21]}  O-O {[%clk 0:02:58]} 12. Qe2 {[%clk 0:02:16]}  cxd4 {[%clk 0:02:54]} 13. cxd4 {[%clk 0:02:15]}  Nc6 {[%clk 0:02:55]} 14. a3 {[%clk 0:02:15]}  d6 {[%clk 0:02:55]} 15. Ba6 {[%clk 0:02:11]}  Bxa6 {[%clk 0:02:53]} 16. Qxa6 {[%clk 0:02:12]}  Qc8 {[%clk 0:02:54]} 17. Qb5 {[%clk 0:02:03]}  a6 {[%clk 0:02:52]} 18. Qd3 {[%clk 0:01:59]}  Bf6 {[%clk 0:02:48]} 19. Nc4 {[%clk 0:01:50]}  Qc7 {[%clk 0:02:47]} 20. d5 {[%clk 0:01:48]}  b5 {[%clk 0:02:29]} 21. Rac1 {[%clk 0:01:34]}  bxc4 {[%clk 0:02:15]} 22. Rxc4 {[%clk 0:01:33]}  Qb7 {[%clk 0:01:53]} 23. dxc6 {[%clk 0:01:31]}  Qxb2 {[%clk 0:01:54]} 24. Qxd6 {[%clk 0:01:23]}  Rfd8 {[%clk 0:01:53]} 25. Qc5 {[%clk 0:01:21]}  Rac8 {[%clk 0:01:53]} 26. Kg2 {[%clk 0:01:14]}  Rc7 {[%clk 0:01:50]} 27. Rec1 {[%clk 0:01:09]}  Rdc8 {[%clk 0:01:48]} 28. Qa5 {[%clk 0:01:07]}  Qb5 {[%clk 0:01:48]} 29. Qxb5 {[%clk 0:01:05]}  axb5 {[%clk 0:01:48]} 30. Rc5 {[%clk 0:01:04]}  Be7 {[%clk 0:01:48]} 31. Rxb5 {[%clk 0:01:04]}  Rxc6 {[%clk 0:01:49]} 32. Rxc6 {[%clk 0:01:04]}  Rxc6 {[%clk 0:01:50]} 33. a4 {[%clk 0:01:01]}  f6 {[%clk 0:01:45]} 34. a5 {[%clk 0:00:59]}  Ra6 {[%clk 0:01:39]} 35. Nd4 {[%clk 0:00:57]}  Kf7 {[%clk 0:01:35]} 36. f4 {[%clk 0:00:57]}  e5 {[%clk 0:01:30]} 37. fxe5 {[%clk 0:00:54]}  fxe5 {[%clk 0:01:31]} 38. Nf3 {[%clk 0:00:48]}  Rd6 {[%clk 0:01:19]} 39. Nxe5+ {[%clk 0:00:47]}  Ke6 {[%clk 0:01:19]} 40. Nf3 {[%clk 0:00:45]}  Rd3 {[%clk 0:01:15]} 41. Rb6+ {[%clk 0:00:45]}  Rd6 {[%clk 0:01:09]} 42. Rxd6+ {[%clk 0:00:44]}  Bxd6 {[%clk 0:01:10]} 43. a6 {[%clk 0:00:42]}  Bc5 {[%clk 0:01:11]} 44. Kh3 {[%clk 0:00:41]}  g6 {[%clk 0:01:11]} 45. Kg4 {[%clk 0:00:41]}  Be3 {[%clk 0:01:05]} 46. Nh4 {[%clk 0:00:39]}  Kf6 {[%clk 0:01:04]} 47. Ng2 {[%clk 0:00:34]}  Ba7 {[%clk 0:01:04]} 48. Nf4 {[%clk 0:00:33]}  h5+ {[%clk 0:01:04]} 49. Kf3 {[%clk 0:00:33]}  Bc5 {[%clk 0:00:45]} 50. h4 {[%clk 0:00:33]}  Ba7 {[%clk 0:00:44]} 51. Ke2 {[%clk 0:00:31]}  Ke5 {[%clk 0:00:39]} 52. Kd3 {[%clk 0:00:31]}  Kf6 {[%clk 0:00:40]} 53. Kc4 {[%clk 0:00:30]}  Ke5 {[%clk 0:00:40]} 54. Kb5 {[%clk 0:00:30]}  Kxe4 {[%clk 0:00:40]} 55. Nxg6 {[%clk 0:00:29]}  Kf3 {[%clk 0:00:40]} 56. Kc6 {[%clk 0:00:28]}  Kxg3 {[%clk 0:00:39]} 57. Kd6 {[%clk 0:00:22]}  Kg4 {[%clk 0:00:37]} 58. Ke6 {[%clk 0:00:22]}  Bg1 {[%clk 0:00:34]} 59. Kf6 {[%clk 0:00:21]}  Ba7 {[%clk 0:00:35]} 60. Ke6 {[%clk 0:00:18]}  Bg1 {[%clk 0:00:35]} 61. Kd6 {[%clk 0:00:16]}  Ba7 {[%clk 0:00:23]} 62. Ke5 {[%clk 0:00:16]}  Bg1 {[%clk 0:00:21]} 63. Ke4 {[%clk 0:00:15]}  Ba7 {[%clk 0:00:21]} 64. Kd5 {[%clk 0:00:11]}  Bg1 {[%clk 0:00:21]} 65. Ne5+ {[%clk 0:00:11]}  Kg3 {[%clk 0:00:19]} 66. Nc6 {[%clk 0:00:10]}  Bb6 {[%clk 0:00:19]} 67. Ke4 {[%clk 0:00:06]}  Kxh4 {[%clk 0:00:19]} 68. Kf3 {[%clk 0:00:05]}  Kh3 {[%clk 0:00:18]} 69. a7 {[%clk 0:00:05]}  Bxa7 {[%clk 0:00:18]} 70. Nxa7 {[%clk 0:00:06]}  h4 {[%clk 0:00:19]} 71. Nc6 {[%clk 0:00:06]}  Kh2 {[%clk 0:00:20]} 72. Ne5 {[%clk 0:00:06]}  Kg1 {[%clk 0:00:20]} 73. Ng4 {[%clk 0:00:06]}  h3 {[%clk 0:00:20]} 74. Kg3 {[%clk 0:00:06]}  h2 {[%clk 0:00:20]} 75. Nxh2 {[%clk 0:00:07]} 1/2-1/2


[Site "https://www.chess.com"]

[Event "Titled Tuesday Blitz July 27 2021"]
[White "Odegov, Artem"]
[Black "Osmonbekov, Talaibek"]
[WhiteFideId "34183644"]
[BlackFideId "2017253"]
[WhiteElo "2288"]
[BlackElo "2135"]
[Result "0-1"]
[Round "08"]
[TimeControl "180+1"]
[Date "2021.07.27"]
[WhiteClock "0:01:04"]
[BlackClock "0:00:33"]

1. d4 {[%clk 0:03:00]}  e6 {[%clk 0:02:59]} 2. c4 {[%clk 0:03:00]}  f5 {[%clk 0:02:59]} 3. h3 {[%clk 0:03:00]}  Nf6 {[%clk 0:02:58]} 4. g4 {[%clk 0:03:01]}  g6 {[%clk 0:02:57]} 5. gxf5 {[%clk 0:03:00]}  exf5 {[%clk 0:02:57]} 6. Nf3 {[%clk 0:03:00]}  Bg7 {[%clk 0:02:56]} 7. Nc3 {[%clk 0:03:00]}  O-O {[%clk 0:02:55]} 8. Bg5 {[%clk 0:02:59]}  d6 {[%clk 0:02:42]} 9. Qc2 {[%clk 0:02:56]}  Nc6 {[%clk 0:02:39]} 10. O-O-O {[%clk 0:02:55]}  Qe8 {[%clk 0:02:32]} 11. Nd5 {[%clk 0:02:36]}  Nxd5 {[%clk 0:02:15]} 12. cxd5 {[%clk 0:02:37]}  Nb4 {[%clk 0:02:14]} 13. Qb3 {[%clk 0:02:33]}  a5 {[%clk 0:02:11]} 14. a3 {[%clk 0:02:32]}  Na6 {[%clk 0:02:07]} 15. Kb1 {[%clk 0:02:31]}  f4 {[%clk 0:01:43]} 16. Ka1 {[%clk 0:02:29]}  a4 {[%clk 0:01:40]} 17. Qc3 {[%clk 0:02:24]}  Nc5 {[%clk 0:01:18]} 18. Bg2 {[%clk 0:02:15]}  Qxe2 {[%clk 0:01:03]} 19. Rhe1 {[%clk 0:02:14]}  Qxf2 {[%clk 0:01:01]} 20. Rd2 {[%clk 0:02:13]}  Nb3+ {[%clk 0:00:48]} 21. Qxb3 {[%clk 0:01:57]}  Qxe1+ {[%clk 0:00:47]} 22. Nxe1 {[%clk 0:01:58]}  axb3 {[%clk 0:00:48]} 23. Nd3 {[%clk 0:01:56]}  f3 {[%clk 0:00:47]} 24. Bf1 {[%clk 0:01:55]}  f2 {[%clk 0:00:46]} 25. Be3 {[%clk 0:01:50]}  Bxh3 {[%clk 0:00:45]} 26. Rd1 {[%clk 0:01:37]}  Bxf1 {[%clk 0:00:42]} 27. Rxf1 {[%clk 0:01:38]}  Rf3 {[%clk 0:00:42]} 28. Nxf2 {[%clk 0:01:35]}  Rxe3 {[%clk 0:00:42]} 29. Ng4 {[%clk 0:01:35]}  Rg3 {[%clk 0:00:41]} 30. Nh2 {[%clk 0:01:33]}  Bxd4 {[%clk 0:00:41]} 31. Nf3 {[%clk 0:01:26]}  Rf8 {[%clk 0:00:37]} 32. Kb1 {[%clk 0:01:05]}  Rgxf3 {[%clk 0:00:36]} 33. Rc1 {[%clk 0:01:05]}  Rf1 {[%clk 0:00:35]} 34. a4 {[%clk 0:01:05]}  Be3 {[%clk 0:00:35]} 35. Re1 {[%clk 0:01:04]}  Rxe1# {[%clk 0:00:33]} 0-1


[Site "https://www.chess.com"]

[Event "Titled Tuesday Blitz July 27 2021"]
[White "Omk124"]
[Black "Urazayev, Arystanbek"]
[BlackFideId "13709810"]
[WhiteElo "2584"]
[BlackElo "2321"]
[Result "0-1"]
[Round "08"]
[TimeControl "180+1"]
[Date "2021.07.27"]
[WhiteClock "0:01:51"]
[BlackClock "0:01:54"]

1. e4 {[%clk 0:03:00]}  c5 {[%clk 0:02:59]} 2. Nf3 {[%clk 0:02:57]}  e6 {[%clk 0:03:00]} 3. d4 {[%clk 0:02:57]}  cxd4 {[%clk 0:03:01]} 4. Nxd4 {[%clk 0:02:58]}  Nf6 {[%clk 0:03:02]} 5. Nc3 {[%clk 0:02:58]}  Nc6 {[%clk 0:03:02]} 6. g3 {[%clk 0:02:58]}  d5 {[%clk 0:02:59]} 7. exd5 {[%clk 0:02:57]}  exd5 {[%clk 0:03:00]} 8. Bg2 {[%clk 0:02:56]}  Bc5 {[%clk 0:03:00]} 9. Be3 {[%clk 0:02:52]}  Bb6 {[%clk 0:02:55]} 10. O-O {[%clk 0:02:51]}  O-O {[%clk 0:02:56]} 11. h3 {[%clk 0:02:49]}  Re8 {[%clk 0:02:55]} 12. Qd2 {[%clk 0:02:46]}  Ne5 {[%clk 0:02:50]} 13. b3 {[%clk 0:02:34]}  Bxh3 {[%clk 0:02:45]} 14. Rad1 {[%clk 0:02:17]}  Bxg2 {[%clk 0:02:45]} 15. Kxg2 {[%clk 0:02:18]}  Rc8 {[%clk 0:02:45]} 16. Nf5 {[%clk 0:02:15]}  Ba5 {[%clk 0:02:20]} 17. Bd4 {[%clk 0:02:14]}  Bxc3 {[%clk 0:02:20]} 18. Bxc3 {[%clk 0:02:12]}  Ne4 {[%clk 0:02:21]} 19. Qd4 {[%clk 0:02:01]}  Nxc3 {[%clk 0:02:12]} 20. Rd3 {[%clk 0:01:56]}  Nb5 {[%clk 0:02:05]} 21. Qf4 {[%clk 0:01:55]}  Nxd3 {[%clk 0:02:01]} 22. Qg4 {[%clk 0:01:54]}  Qf6 {[%clk 0:02:01]} 23. cxd3 {[%clk 0:01:53]}  g6 {[%clk 0:01:57]} 24. Nh6+ {[%clk 0:01:51]}  Kg7 {[%clk 0:01:57]} 25. Rh1 {[%clk 0:01:51]}  Rc2 {[%clk 0:01:54]} 0-1


[Site "https://www.chess.com"]

[Event "Titled Tuesday Blitz July 27 2021"]
[White "Palchuk, Andrii"]
[Black "Stribuk, Artiom"]
[WhiteFideId "14176688"]
[BlackFideId "13515659"]
[WhiteElo "2284"]
[BlackElo "2224"]
[Result "1-0"]
[Round "08"]
[TimeControl "180+1"]
[Date "2021.07.27"]
[WhiteClock "0:00:17"]
[BlackClock "0:00:05"]

1. e4 {[%clk 0:02:59]}  c5 {[%clk 0:02:58]} 2. Nf3 {[%clk 0:02:57]}  Nc6 {[%clk 0:02:59]} 3. c3 {[%clk 0:02:57]}  Nf6 {[%clk 0:02:59]} 4. e5 {[%clk 0:02:56]}  Nd5 {[%clk 0:03:00]} 5. d4 {[%clk 0:02:57]}  cxd4 {[%clk 0:03:00]} 6. cxd4 {[%clk 0:02:57]}  e6 {[%clk 0:03:00]} 7. Nc3 {[%clk 0:02:58]}  d6 {[%clk 0:03:01]} 8. exd6 {[%clk 0:02:57]}  Bxd6 {[%clk 0:03:00]} 9. Bd3 {[%clk 0:02:57]}  Nf6 {[%clk 0:02:52]} 10. O-O {[%clk 0:02:55]}  O-O {[%clk 0:02:52]} 11. Bg5 {[%clk 0:02:54]}  b6 {[%clk 0:02:47]} 12. Rc1 {[%clk 0:02:37]}  Bb7 {[%clk 0:02:47]} 13. Re1 {[%clk 0:02:25]}  Rc8 {[%clk 0:02:42]} 14. a3 {[%clk 0:02:21]}  Ne7 {[%clk 0:02:17]} 15. Bxf6 {[%clk 0:02:16]}  gxf6 {[%clk 0:02:18]} 16. Ne4 {[%clk 0:02:09]}  Bxe4 {[%clk 0:02:14]} 17. Rxe4 {[%clk 0:02:02]}  Ng6 {[%clk 0:02:08]} 18. Rxc8 {[%clk 0:01:45]}  Qxc8 {[%clk 0:02:08]} 19. h4 {[%clk 0:01:44]}  Rd8 {[%clk 0:01:57]} 20. h5 {[%clk 0:01:42]}  Nf4 {[%clk 0:01:58]} 21. g3 {[%clk 0:01:24]}  Nxd3 {[%clk 0:01:55]} 22. Rg4+ {[%clk 0:01:22]}  Kh8 {[%clk 0:01:53]} 23. Qxd3 {[%clk 0:01:22]}  f5 {[%clk 0:01:28]} 24. Rh4 {[%clk 0:01:13]}  Qc1+ {[%clk 0:01:19]} 25. Kg2 {[%clk 0:01:12]}  Rg8 {[%clk 0:01:05]} 26. d5 {[%clk 0:00:46]}  Qxb2 {[%clk 0:00:35]} 27. Rh3 {[%clk 0:00:42]}  Bc5 {[%clk 0:00:33]} 28. dxe6 {[%clk 0:00:26]}  Qxf2+ {[%clk 0:00:31]} 29. Kh1 {[%clk 0:00:27]}  Rxg3 {[%clk 0:00:07]} 30. Qd8+ {[%clk 0:00:20]}  Kg7 {[%clk 0:00:04]} 31. h6+ {[%clk 0:00:19]}  Kg6 {[%clk 0:00:05]} 32. Ne5# {[%clk 0:00:17]} 1-0


[Site "https://www.chess.com"]

[Event "Titled Tuesday Blitz July 27 2021"]
[White "Preotu, Razvan"]
[Black "Damjanovic, Vladimir"]
[WhiteFideId "2613280"]
[BlackFideId "903795"]
[WhiteElo "2757"]
[BlackElo "2507"]
[Result "0-1"]
[Round "08"]
[TimeControl "180+1"]
[Date "2021.07.27"]
[WhiteClock "0:00:02"]
[BlackClock "0:00:03"]

1. e4 {[%clk 0:03:00]}  c6 {[%clk 0:02:55]} 2. Nc3 {[%clk 0:02:58]}  d5 {[%clk 0:02:56]} 3. Nf3 {[%clk 0:02:59]}  dxe4 {[%clk 0:02:55]} 4. Nxe4 {[%clk 0:03:00]}  Nf6 {[%clk 0:02:56]} 5. Qe2 {[%clk 0:03:00]}  Nxe4 {[%clk 0:02:57]} 6. Qxe4 {[%clk 0:03:01]}  Qa5 {[%clk 0:02:57]} 7. b4 {[%clk 0:02:58]}  Qf5 {[%clk 0:02:52]} 8. Qe3 {[%clk 0:02:58]}  Qe6 {[%clk 0:02:51]} 9. Bb2 {[%clk 0:02:55]}  Qxe3+ {[%clk 0:02:47]} 10. fxe3 {[%clk 0:02:56]}  f6 {[%clk 0:02:48]} 11. d4 {[%clk 0:02:46]}  e5 {[%clk 0:02:30]} 12. b5 {[%clk 0:02:36]}  exd4 {[%clk 0:02:23]} 13. exd4 {[%clk 0:02:32]}  Bb4+ {[%clk 0:02:22]} 14. Kf2 {[%clk 0:02:31]}  Be6 {[%clk 0:02:17]} 15. bxc6 {[%clk 0:02:06]}  bxc6 {[%clk 0:02:18]} 16. Bd3 {[%clk 0:01:58]}  Nd7 {[%clk 0:02:10]} 17. c4 {[%clk 0:01:51]}  Nb6 {[%clk 0:02:00]} 18. Rac1 {[%clk 0:01:51]}  Kf7 {[%clk 0:01:59]} 19. Rhd1 {[%clk 0:01:28]}  Rhd8 {[%clk 0:01:48]} 20. Ng1 {[%clk 0:01:27]}  Rab8 {[%clk 0:01:27]} 21. Ne2 {[%clk 0:01:27]}  Na4 {[%clk 0:01:27]} 22. Ba1 {[%clk 0:01:26]}  Ba3 {[%clk 0:01:27]} 23. Rc2 {[%clk 0:01:20]}  Nb2 {[%clk 0:01:20]} 24. Bxb2 {[%clk 0:01:19]}  Bxb2 {[%clk 0:01:16]} 25. Kf3 {[%clk 0:00:58]}  f5 {[%clk 0:00:52]} 26. Rb1 {[%clk 0:00:45]}  Ba3 {[%clk 0:00:46]} 27. Rxb8 {[%clk 0:00:42]}  Rxb8 {[%clk 0:00:47]} 28. Nf4 {[%clk 0:00:23]}  Bd7 {[%clk 0:00:42]} 29. c5 {[%clk 0:00:21]}  g5 {[%clk 0:00:39]} 30. Bc4+ {[%clk 0:00:21]}  Kf6 {[%clk 0:00:39]} 31. Nd3 {[%clk 0:00:20]}  f4 {[%clk 0:00:21]} 32. Ne5 {[%clk 0:00:08]}  Bf5 {[%clk 0:00:19]} 33. Rd2 {[%clk 0:00:04]}  Rb1 {[%clk 0:00:12]} 34. Nxc6 {[%clk 0:00:02]}  Rc1 {[%clk 0:00:12]} 35. Bd5 {[%clk 0:00:02]}  Rg1 {[%clk 0:00:09]} 36. g3 {[%clk 0:00:02]}  Bc1 {[%clk 0:00:09]} 37. Rf2 {[%clk 0:00:01]}  g4+ {[%clk 0:00:09]} 38. Ke2 {[%clk 0:00:02]}  f3+ {[%clk 0:00:09]} 39. Bxf3 {[%clk 0:00:02]}  gxf3+ {[%clk 0:00:10]} 40. Kxf3 {[%clk 0:00:03]}  Re1 {[%clk 0:00:08]} 41. Ne5 {[%clk 0:00:02]}  h5 {[%clk 0:00:06]} 42. Re2 {[%clk 0:00:01]}  Rf1+ {[%clk 0:00:03]} 43. Kg2 {[%clk 0:00:02]}  Rd1 {[%clk 0:00:03]} 0-1


[Site "https://www.chess.com"]

[Event "Titled Tuesday Blitz July 27 2021"]
[White "Priasmoro, Novendra"]
[Black "Wiewiora, Eneasz"]
[WhiteFideId "7105029"]
[BlackFideId "1140396"]
[WhiteElo "2309"]
[BlackElo "2312"]
[Result "0-1"]
[Round "08"]
[TimeControl "180+1"]
[Date "2021.07.27"]
[WhiteClock "0:00:52"]
[BlackClock "0:00:29"]

1. e4 {[%clk 0:03:00]}  d6 {[%clk 0:02:55]} 2. d4 {[%clk 0:03:01]}  Nf6 {[%clk 0:02:53]} 3. Nc3 {[%clk 0:03:01]}  e5 {[%clk 0:02:52]} 4. Nf3 {[%clk 0:03:00]}  Nbd7 {[%clk 0:02:51]} 5. Bc4 {[%clk 0:03:00]}  Be7 {[%clk 0:02:51]} 6. O-O {[%clk 0:03:00]}  O-O {[%clk 0:02:51]} 7. a4 {[%clk 0:03:01]}  c6 {[%clk 0:02:50]} 8. Re1 {[%clk 0:02:58]}  b6 {[%clk 0:02:48]} 9. b3 {[%clk 0:02:57]}  a6 {[%clk 0:02:48]} 10. Bb2 {[%clk 0:02:56]}  Bb7 {[%clk 0:02:48]} 11. dxe5 {[%clk 0:02:50]}  dxe5 {[%clk 0:02:46]} 12. Nh4 {[%clk 0:02:49]}  b5 {[%clk 0:02:42]} 13. axb5 {[%clk 0:02:44]}  axb5 {[%clk 0:02:42]} 14. Bf1 {[%clk 0:02:41]}  Rxa1 {[%clk 0:02:40]} 15. Qxa1 {[%clk 0:02:42]}  g6 {[%clk 0:02:40]} 16. Nf3 {[%clk 0:02:41]}  Qc7 {[%clk 0:02:36]} 17. Qc1 {[%clk 0:02:32]}  Re8 {[%clk 0:02:35]} 18. h3 {[%clk 0:02:32]}  Bc5 {[%clk 0:02:33]} 19. Qh6 {[%clk 0:02:31]}  Bf8 {[%clk 0:02:32]} 20. Qh4 {[%clk 0:02:31]}  Bg7 {[%clk 0:02:30]} 21. Ra1 {[%clk 0:02:26]}  h6 {[%clk 0:02:10]} 22. Bc1 {[%clk 0:02:13]}  b4 {[%clk 0:01:30]} 23. Na4 {[%clk 0:02:03]}  g5 {[%clk 0:01:28]} 24. Bxg5 {[%clk 0:01:59]}  hxg5 {[%clk 0:01:29]} 25. Nxg5 {[%clk 0:02:00]}  Nf8 {[%clk 0:01:29]} 26. Bc4 {[%clk 0:02:00]}  Re7 {[%clk 0:01:17]} 27. Nc5 {[%clk 0:01:59]}  Qb6 {[%clk 0:01:03]} 28. Nd3 {[%clk 0:01:40]}  Ng6 {[%clk 0:01:02]} 29. Qg3 {[%clk 0:01:39]}  Qd4 {[%clk 0:00:56]} 30. Ra7 {[%clk 0:01:37]}  Qxa7 {[%clk 0:00:55]} 31. Nxf7 {[%clk 0:01:34]}  Rxf7 {[%clk 0:00:55]} 32. Qxg6 {[%clk 0:01:34]}  Bc8 {[%clk 0:00:54]} 33. Nxe5 {[%clk 0:01:35]}  Qa1+ {[%clk 0:00:54]} 34. Kh2 {[%clk 0:00:58]}  Qxe5+ {[%clk 0:00:52]} 35. f4 {[%clk 0:00:57]}  Qxf4+ {[%clk 0:00:51]} 36. g3 {[%clk 0:00:57]}  Qf2+ {[%clk 0:00:49]} 37. Kh1 {[%clk 0:00:58]}  Qf3+ {[%clk 0:00:46]} 38. Kh2 {[%clk 0:00:57]}  Nxe4 {[%clk 0:00:43]} 39. Bxf7+ {[%clk 0:00:56]}  Qxf7 {[%clk 0:00:44]} 40. Qxe4 {[%clk 0:00:57]}  Be6 {[%clk 0:00:39]} 41. Qxc6 {[%clk 0:00:54]}  Bd5 {[%clk 0:00:34]} 42. Qc8+ {[%clk 0:00:53]}  Kh7 {[%clk 0:00:34]} 43. Qc5 {[%clk 0:00:52]}  Qf3 {[%clk 0:00:29]} 0-1


[Site "https://www.chess.com"]

[Event "Titled Tuesday Blitz July 27 2021"]
[White "Pruijssers, Roeland"]
[Black "Rangel, Daniel"]
[WhiteFideId "1013068"]
[BlackFideId "2124475"]
[WhiteElo "2545"]
[BlackElo "2187"]
[Result "1/2-1/2"]
[Round "08"]
[TimeControl "180+1"]
[Date "2021.07.27"]
[WhiteClock "0:01:01"]
[BlackClock "0:00:19"]

1. f4 {[%clk 0:03:00]}  g6 {[%clk 0:02:51]} 2. Nf3 {[%clk 0:02:58]}  Bg7 {[%clk 0:02:51]} 3. g3 {[%clk 0:02:58]}  c5 {[%clk 0:02:50]} 4. Bg2 {[%clk 0:02:59]}  e6 {[%clk 0:02:50]} 5. O-O {[%clk 0:02:58]}  Ne7 {[%clk 0:02:51]} 6. e4 {[%clk 0:02:58]}  O-O {[%clk 0:02:44]} 7. Nc3 {[%clk 0:02:56]}  d6 {[%clk 0:02:43]} 8. d4 {[%clk 0:02:45]}  Nbc6 {[%clk 0:02:36]} 9. Be3 {[%clk 0:02:41]}  b6 {[%clk 0:02:17]} 10. d5 {[%clk 0:02:34]}  exd5 {[%clk 0:02:16]} 11. exd5 {[%clk 0:02:34]}  Nf5 {[%clk 0:02:03]} 12. dxc6 {[%clk 0:02:23]}  Nxe3 {[%clk 0:02:03]} 13. Qd2 {[%clk 0:02:18]}  Nxf1 {[%clk 0:01:54]} 14. Rxf1 {[%clk 0:02:17]}  Bg4 {[%clk 0:01:48]} 15. Nd5 {[%clk 0:02:12]}  Rc8 {[%clk 0:01:39]} 16. Re1 {[%clk 0:02:10]}  Re8 {[%clk 0:01:26]} 17. c7 {[%clk 0:02:03]}  Rxe1+ {[%clk 0:01:24]} 18. Qxe1 {[%clk 0:02:04]}  Rxc7 {[%clk 0:01:19]} 19. Nxc7 {[%clk 0:02:05]}  Qxc7 {[%clk 0:01:20]} 20. Qe8+ {[%clk 0:02:06]}  Bf8 {[%clk 0:01:20]} 21. Ng5 {[%clk 0:01:32]}  Qe7 {[%clk 0:01:12]} 22. Bc6 {[%clk 0:01:31]}  Qxe8 {[%clk 0:00:41]} 23. Bxe8 {[%clk 0:01:32]}  Be6 {[%clk 0:00:41]} 24. Nxe6 {[%clk 0:01:27]}  fxe6 {[%clk 0:00:41]} 25. Kf2 {[%clk 0:01:19]}  Kg7 {[%clk 0:00:40]} 26. c4 {[%clk 0:01:17]}  d5 {[%clk 0:00:35]} 27. b3 {[%clk 0:01:16]}  Kf6 {[%clk 0:00:35]} 28. Bc6 {[%clk 0:01:16]}  d4 {[%clk 0:00:35]} 29. Kf3 {[%clk 0:01:15]}  Bd6 {[%clk 0:00:34]} 30. Be4 {[%clk 0:01:15]}  h6 {[%clk 0:00:33]} 31. h4 {[%clk 0:01:13]}  e5 {[%clk 0:00:29]} 32. fxe5+ {[%clk 0:01:11]}  Bxe5 {[%clk 0:00:30]} 33. Bd3 {[%clk 0:01:07]}  g5 {[%clk 0:00:26]} 34. h5 {[%clk 0:01:06]}  Bd6 {[%clk 0:00:25]} 35. Kg4 {[%clk 0:01:04]}  Ke5 {[%clk 0:00:24]} 36. Kf3 {[%clk 0:01:04]}  Be7 {[%clk 0:00:24]} 37. Kg4 {[%clk 0:01:04]}  Bd6 {[%clk 0:00:21]} 38. Kf3 {[%clk 0:01:01]}  Be7 {[%clk 0:00:19]} 39. Kg4 {[%clk 0:01:01]}  Bd6 {[%clk 0:00:19]} 1/2-1/2


[Site "https://www.chess.com"]

[Event "Titled Tuesday Blitz July 27 2021"]
[White "Quparadze, Giga"]
[Black "Andreikin, Dmitry"]
[WhiteFideId "13602250"]
[BlackFideId "4158814"]
[WhiteElo "2658"]
[BlackElo "2782"]
[Result "1-0"]
[Round "08"]
[TimeControl "180+1"]
[Date "2021.07.27"]
[WhiteClock "0:00:32"]
[BlackClock "0:00:04"]

1. e4 {[%clk 0:03:00]}  e6 {[%clk 0:03:00]} 2. d4 {[%clk 0:03:01]}  d5 {[%clk 0:03:00]} 3. Nd2 {[%clk 0:03:01]}  dxe4 {[%clk 0:03:00]} 4. Nxe4 {[%clk 0:03:01]}  Nd7 {[%clk 0:03:00]} 5. Bd3 {[%clk 0:02:59]}  Ngf6 {[%clk 0:03:00]} 6. Qe2 {[%clk 0:02:59]}  c5 {[%clk 0:02:52]} 7. Nxf6+ {[%clk 0:02:59]}  Nxf6 {[%clk 0:02:52]} 8. dxc5 {[%clk 0:02:58]}  Bxc5 {[%clk 0:02:49]} 9. Nf3 {[%clk 0:02:58]}  O-O {[%clk 0:02:47]} 10. O-O {[%clk 0:02:57]}  b6 {[%clk 0:02:45]} 11. Bg5 {[%clk 0:02:56]}  Bb7 {[%clk 0:02:44]} 12. Rad1 {[%clk 0:02:56]}  Qc7 {[%clk 0:02:42]} 13. Ne5 {[%clk 0:02:53]}  Rfd8 {[%clk 0:02:37]} 14. Bf4 {[%clk 0:02:40]}  Qe7 {[%clk 0:02:31]} 15. Bg3 {[%clk 0:02:39]}  Rd5 {[%clk 0:02:28]} 16. c4 {[%clk 0:02:38]}  Rd4 {[%clk 0:02:26]} 17. Nf3 {[%clk 0:02:38]}  Bxf3 {[%clk 0:02:17]} 18. Qxf3 {[%clk 0:02:39]}  Rad8 {[%clk 0:02:17]} 19. Be5 {[%clk 0:02:37]}  R4d7 {[%clk 0:02:15]} 20. Qe2 {[%clk 0:02:20]}  Bd4 {[%clk 0:02:11]} 21. Bxd4 {[%clk 0:02:17]}  Rxd4 {[%clk 0:02:12]} 22. Bc2 {[%clk 0:02:18]}  Qb4 {[%clk 0:02:01]} 23. Bb3 {[%clk 0:02:02]}  Rd2 {[%clk 0:01:40]} 24. Rxd2 {[%clk 0:02:02]}  Rxd2 {[%clk 0:01:38]} 25. Qe5 {[%clk 0:01:57]}  h5 {[%clk 0:01:22]} 26. Qb8+ {[%clk 0:01:51]}  Qf8 {[%clk 0:01:22]} 27. Qxa7 {[%clk 0:01:50]}  Qc5 {[%clk 0:01:22]} 28. Qa8+ {[%clk 0:01:35]}  Kh7 {[%clk 0:01:21]} 29. Qb7 {[%clk 0:01:32]}  Kg6 {[%clk 0:01:11]} 30. h3 {[%clk 0:01:32]}  Rxb2 {[%clk 0:01:08]} 31. Qf3 {[%clk 0:01:31]}  h4 {[%clk 0:00:57]} 32. Rc1 {[%clk 0:01:23]}  Qd4 {[%clk 0:00:49]} 33. Bc2+ {[%clk 0:01:11]}  Kg5 {[%clk 0:00:48]} 34. Bb3 {[%clk 0:01:08]}  g6 {[%clk 0:00:30]} 35. Rf1 {[%clk 0:01:06]}  Qf4 {[%clk 0:00:27]} 36. Qc3 {[%clk 0:01:03]}  Rxf2 {[%clk 0:00:15]} 37. Rxf2 {[%clk 0:01:03]}  Qxf2+ {[%clk 0:00:16]} 38. Kxf2 {[%clk 0:01:03]}  Ne4+ {[%clk 0:00:17]} 39. Ke3 {[%clk 0:01:04]}  Nxc3 {[%clk 0:00:18]} 40. Kd3 {[%clk 0:01:04]}  Nb1 {[%clk 0:00:14]} 41. Kc2 {[%clk 0:01:00]}  Na3+ {[%clk 0:00:14]} 42. Kb2 {[%clk 0:01:01]}  Kf4 {[%clk 0:00:09]} 43. Kxa3 {[%clk 0:01:00]}  Kg3 {[%clk 0:00:10]} 44. Kb2 {[%clk 0:00:51]}  Kxg2 {[%clk 0:00:10]} 45. a4 {[%clk 0:00:52]}  g5 {[%clk 0:00:08]} 46. c5 {[%clk 0:00:49]}  g4 {[%clk 0:00:05]} 47. cxb6 {[%clk 0:00:44]}  gxh3 {[%clk 0:00:06]} 48. b7 {[%clk 0:00:44]}  h2 {[%clk 0:00:06]} 49. b8=Q {[%clk 0:00:35]}  h1=Q {[%clk 0:00:06]} 50. Qg8+ {[%clk 0:00:35]}  Kh2 {[%clk 0:00:02]} 51. Qxf7 {[%clk 0:00:35]}  h3 {[%clk 0:00:02]} 52. Qxe6 {[%clk 0:00:35]}  Qg2+ {[%clk 0:00:02]} 53. Ka3 {[%clk 0:00:35]}  Kg1 {[%clk 0:00:02]} 54. Bd5 {[%clk 0:00:33]}  Qg3+ {[%clk 0:00:03]} 55. Kb4 {[%clk 0:00:33]}  h2 {[%clk 0:00:03]} 56. Qe4 {[%clk 0:00:33]}  Qd6+ {[%clk 0:00:02]} 57. Kb5 {[%clk 0:00:32]}  Qd7+ {[%clk 0:00:03]} 58. Bc6 {[%clk 0:00:32]}  Qd2 {[%clk 0:00:02]} 59. Qh1+ {[%clk 0:00:31]}  Kf2 {[%clk 0:00:03]} 60. Qxh2+ {[%clk 0:00:31]}  Kf1 {[%clk 0:00:04]} 61. Qxd2 {[%clk 0:00:32]} 1-0


[Site "https://www.chess.com"]